fUST/lending_fUST_20240902
["ID","MTS","AMOUNT","RATE_DAILY","PERIOD"]
[336849966,1725209480826,-500.0,0.00025753,2]
[336849967,1725209480836,-500.0,0.00025753,2]
[336849968,1725209480846,-500.0,0.00025753,2]
[336849969,1725209480855,-500.0,0.00025753,2]
[336849970,1725209480865,-500.0,0.00025753,2]
[336849971,1725209480875,-1009.87,0.00025753,2]
[336849972,1725209480884,-500.0,0.00025753,2]
[336849973,1725209480894,-500.0,0.00025753,2]
[336849974,1725209480903,-500.0,0.00025753,2]
[336849975,1725209480913,-500.0,0.00025753,2]
[336849976,1725209480923,-500.0,0.00025753,2]
[336849977,1725209480932,-525.49,0.00025753,2]
[336849978,1725209480942,-500.0,0.00025753,2]
[336849979,1725209480951,-933.95,0.00025753,2]
[336849980,1725209480962,-500.0,0.00025753,2]
[336849981,1725209480972,-500.0,0.00025753,2]
[336849982,1725209480981,-500.0,0.00025753,2]
[336849983,1725209480991,-500.0,0.00025753,2]
[336849984,1725209481000,-500.0,0.00025753,2]
[336849985,1725209481009,-636.14,0.00025753,2]
[336849986,1725209481018,-500.0,0.00025753,2]
[336849987,1725209481027,-430.54722159,0.00025753,2]
[336849988,1725209481037,-500.0,0.00025753,2]
[336849989,1725209481046,-1856.5,0.00025753,2]
[336849990,1725209481055,-500.0,0.00025753,2]
[336849991,1725209481065,-1379.91,0.00025753,2]
[336849992,1725209481074,-966.72,0.00025753,2]
[336849993,1725209481084,-643.02,0.00025753,2]
[336849994,1725209481094,-500.0,0.00025753,2]
[336849995,1725209481103,-500.0,0.00025753,2]
[336849996,1725209481112,-1807.05,0.00025753,2]
[336849997,1725209481122,-500.0,0.00025753,2]
[336849998,1725209481131,-500.0,0.00025753,2]
[336849999,1725209481141,-500.0,0.00025753,2]
[336850000,1725209481150,-504.25,0.00025753,2]
[336850001,1725209481160,-500.0,0.00025753,2]
[336850002,1725209481169,-500.0,0.00025753,2]
[336850003,1725209481179,-690.86,0.00025753,2]
[336850004,1725209481189,-500.0,0.00025753,2]
[336850005,1725209481198,-500.0,0.00025753,2]
[336850006,1725209481208,-506.87810962,0.00025753,2]
[336850007,1725209481217,-1794.98,0.00025753,2]
[336850008,1725209481227,-500.0,0.00025753,2]
[336850009,1725209481237,-500.0,0.00025753,2]
[336850010,1725209481246,-532.71,0.00025753,2]
[336850011,1725209481255,-500.0,0.00025753,2]
[336850012,1725209481265,-500.0,0.00025753,2]
[336850013,1725209481274,-3446.01,0.00025753,2]
[336850014,1725209481283,-2739.85,0.00025753,2]
[336850015,1725209481293,-707.09,0.00025753,2]
[336850016,1725209481302,-1637.46,0.00025753,2]
[336850017,1725209481321,-500.0,0.00025753,2]
[336850018,1725209481332,-500.0,0.00025753,2]
[336850019,1725209481341,-500.0,0.00025753,2]
[336850020,1725209481351,-500.0,0.00025753,2]
[336850021,1725209481361,-1022.52,0.00025753,2]
[336850022,1725209481370,-687.73,0.00025753,2]
[336850023,1725209481380,-787.17,0.00025753,2]
[336850024,1725209481390,-500.0,0.00025753,2]
[336850025,1725209481399,-548.33591432,0.00025753,2]
[336850026,1725209481409,-500.0,0.00025753,2]
[336850027,1725209481418,-500.0,0.00025753,2]
[336850028,1725209481428,-362.27534699,0.00025753,2]
[336850029,1725209481438,-500.0,0.00025753,2]
[336850030,1725209481447,-838.81,0.00025753,2]
[336850031,1725209481458,-500.0,0.00025753,2]
[336850032,1725209481468,-500.0,0.00025753,2]
[336850033,1725209481477,-2630.39,0.00025753,2]
[336850034,1725209481487,-1530.5,0.00025753,2]
[336850035,1725209481497,-628.82,0.00025753,2]
[336850036,1725209481507,-2233.56,0.00025753,2]
[336850037,1725209481519,-500.0,0.00025753,2]
[336850038,1725209481530,-500.0,0.00025753,2]
[336850039,1725209481541,-500.0,0.00025753,2]
[336850040,1725209481551,-667.06,0.00025753,2]
[336850041,1725209481560,-500.0,0.00025753,2]
[336850042,1725209481570,-1394.08,0.00025753,2]
[336850043,1725209481580,-851.66,0.00025753,2]
[336850044,1725209481593,-500.0,0.00025753,2]
[336850045,1725209481602,-1649.78,0.00025753,2]
[336850046,1725209481612,-500.0,0.00025753,2]
[336850047,1725209481623,-1047.65,0.00025753,2]
[336850048,1725209481632,-636.38749605,0.00025753,2]
[336850049,1725209481643,-1789.21,0.00025753,2]
[336850050,1725209481652,-1717.02,0.00025753,2]
[336850051,1725209481663,-500.0,0.00025753,2]
[336850052,1725209481673,-1275.39,0.00025753,2]
[336850053,1725209481683,-500.0,0.00025753,2]
[336850054,1725209481693,-854.9,0.00025753,2]
[336850055,1725209481703,-1204.64,0.00025753,2]
[336850056,1725209481713,-2110.7,0.00025753,2]
[336850057,1725209481723,-792.42,0.00025753,2]
[336850058,1725209481733,-1415.94,0.00025753,2]
[336850059,1725209481742,-667.98,0.00025753,2]
[336850060,1725209481751,-500.0,0.00025753,2]
[336850061,1725209481761,-500.0,0.00025753,2]
[336850062,1725209481770,-500.0,0.00025753,2]
[336850063,1725209481780,-503.75714057,0.00025753,2]
[336850064,1725209481790,-884.55,0.00025753,2]
[336850065,1725209481799,-1831.39,0.00025753,2]
[336850066,1725209481809,-502.96019169,0.00025753,2]
[336850067,1725209481819,-1388.24,0.00025753,2]
[336850068,1725209481828,-2287.69,0.00025753,2]
[336850069,1725209481838,-1335.6,0.00025753,2]
[336850070,1725209481847,-500.0,0.00025753,2]
[336850071,1725209481857,-559.06,0.00025753,2]
[336850072,1725209481867,-500.0,0.00025753,2]
[336850073,1725209481876,-523.66,0.00025753,2]
[336850074,1725209481886,-1170.97,0.00025753,2]
[336850075,1725209481895,-8054.46,0.00025753,2]
[336850076,1725209481905,-692.53,0.00025753,2]
[336850077,1725209481914,-5495.83,0.00025753,2]
[336850078,1725209481924,-500.0,0.00025753,2]
[336850079,1725209481934,-1803.48,0.00025753,2]
[336850080,1725209481948,-500.0,0.00025753,2]
[336850081,1725209481959,-2079.76,0.00025753,2]
[336850082,1725209481969,-500.0,0.00025753,2]
[336850083,1725209481980,-628.65773662,0.00025753,2]
[336850084,1725209481991,-1959.81,0.00025753,2]
[336850085,1725209482000,-1265.99,0.00025753,2]
[336850086,1725209482012,-1995.67,0.00025753,2]
[336850087,1725209482021,-674.22,0.00025753,2]
[336850088,1725209482034,-500.0,0.00025753,2]
[336850089,1725209482043,-4112.56,0.00025753,2]
[336850090,1725209482053,-1641.37,0.00025753,2]
[336850091,1725209482063,-1957.88,0.00025753,2]
[336850092,1725209482075,-500.0,0.00025753,2]
[336850093,1725209482086,-2698.02,0.00025753,2]
[336850094,1725209482097,-591.74,0.00025753,2]
[336850095,1725209482107,-570.86907341,0.00025753,2]
[336850096,1725209482116,-500.0,0.00025753,2]
[336850097,1725209482269,-1669.77,0.00025753,2]
[336850098,1725209482279,-904.8,0.00025753,2]
[336850099,1725209482288,-1392.03,0.00025753,2]
[336850100,1725209482298,-1836.43,0.00025753,2]
[336850101,1725209482307,-577.58,0.00025753,2]
[336850102,1725209482317,-517.98,0.00025753,2]
[336850103,1725209482326,-618.15,0.00025753,2]
[336850104,1725209482336,-1311.07,0.00025753,2]
[336850105,1725209482345,-500.0,0.00025753,2]
[336850106,1725209482355,-1499.9,0.00025753,2]
[336850107,1725209482365,-599.8257518,0.00025777,3]
[336850108,1725209482375,-5779.76,0.000258,14]
[336850109,1725209482387,-1000.0,0.00025821,2]
[336850110,1725209482399,-154.0,0.0002589,2]
[336850111,1725209482409,-161.0,0.0002589,2]
[336850112,1725209482420,-150.112233,0.000259,9]
[336850113,1725209482432,-522.0,0.00025909,2]
[336850114,1725209482441,-150.0,0.00025909,2]
[336850115,1725209482450,-150.0,0.00025909,2]
[336850116,1725209482459,-465.00739706,0.00025987,2]
[336850117,1725209482469,-500.0,0.00026016,2]
[336850118,1725209482480,-726.88,0.00026016,2]
[336850119,1725209482491,-679.29,0.00026016,2]
[336850120,1725209482501,-1476.5,0.00026016,2]
[336850121,1725209482510,-250.0,0.00026021,2]
[336850122,1725209482521,-500.0,0.00026027,2]
[336850123,1725209482532,-800.72,0.00026027,2]
[336850124,1725209482544,-500.0,0.00026027,2]
[336850125,1725209482553,-520.45,0.00026027,2]
[336850126,1725209482563,-500.0,0.00026027,2]
[336850127,1725209482573,-500.0,0.00026027,2]
[336850128,1725209482582,-500.0,0.00026027,2]
[336850129,1725209482595,-500.0,0.00026027,2]
[336850130,1725209482606,-500.0,0.00026027,2]
[336850131,1725209482615,-587.86,0.00026027,2]
[336850132,1725209482625,-620.9,0.00026027,2]
[336850133,1725209482637,-500.0,0.00026027,2]
[336850134,1725209482646,-506.13628989,0.00026027,2]
[336850135,1725209482657,-500.0,0.00026027,2]
[336850136,1725209482669,-500.0,0.00026027,2]
[336850137,1725209482678,-532.99,0.00026027,2]
[336850138,1725209482687,-530.45,0.00026027,2]
[336850139,1725209482697,-560.7,0.00026027,2]
[336850140,1725209482706,-426.37308199,0.00026027,2]
[336850141,1725209482717,-500.0,0.00026027,2]
[336850142,1725209482727,-500.0,0.00026027,2]
[336850143,1725209482737,-1059.37,0.00026027,2]
[336850144,1725209482746,-870.63,0.00026027,2]
[336850145,1725209482755,-500.0,0.00026027,2]
[336850146,1725209482765,-798.55,0.00026027,2]
[336850147,1725209482775,-690.52,0.00026027,2]
[336850148,1725209482785,-500.0,0.00026027,2]
[336850149,1725209482794,-500.0,0.00026027,2]
[336850150,1725209482803,-1159.54,0.00026027,2]
[336850151,1725209482813,-500.0,0.00026027,2]
[336850152,1725209482822,-500.0,0.00026027,2]
[336850153,1725209482832,-500.0,0.00026027,2]
[336850154,1725209482842,-500.0,0.00026027,2]
[336850155,1725209482851,-500.0,0.00026027,2]
[336850156,1725209482861,-500.0,0.00026027,2]
[336850157,1725209482871,-500.0,0.00026027,2]
[336850158,1725209482880,-500.0,0.00026027,2]
[336850159,1725209482890,-500.0,0.00026027,2]
[336850160,1725209482899,-500.0,0.00026027,2]
[336850161,1725209482909,-500.0,0.00026027,2]
[336850162,1725209482918,-500.0,0.00026027,2]
[336850163,1725209482927,-500.0,0.00026027,2]
[336850164,1725209482937,-500.0,0.00026027,2]
[336850165,1725209482946,-500.0,0.00026027,2]
[336850166,1725209482955,-500.0,0.00026027,2]
[336850167,1725209482966,-3572.54,0.00026027,2]
[336850168,1725209482975,-500.0,0.00026027,2]
[336850169,1725209482984,-500.0,0.00026027,2]
[336850170,1725209482993,-500.0,0.00026027,2]
[336850171,1725209483002,-500.0,0.00026027,2]
[336850172,1725209483011,-500.0,0.00026027,2]
[336850173,1725209483021,-500.0,0.00026027,2]
[336850174,1725209483031,-247.901188,0.00026027,2]
[336850175,1725209483040,-1297.92,0.00026027,2]
[336850176,1725209483050,-500.0,0.00026027,2]
[336850177,1725209483059,-500.0,0.00026027,2]
[336850178,1725209483069,-699.51,0.00026027,2]
[336850179,1725209483078,-500.0,0.00026027,2]
[336850180,1725209483088,-641.15,0.00026027,2]
[336850181,1725209483098,-673.47,0.00026027,2]
[336850182,1725209483107,-500.0,0.00026027,2]
[336850183,1725209483117,-683.17,0.00026027,2]
[336850184,1725209483126,-500.0,0.00026027,2]
[336850185,1725209483135,-500.0,0.00026027,2]
[336850186,1725209483144,-500.0,0.00026027,2]
[336850187,1725209483153,-500.0,0.00026027,2]
[336850188,1725209483162,-279.92013311,0.00026027,2]
[336850189,1725209483171,-500.0,0.00026027,2]
[336850190,1725209483180,-500.0,0.00026027,2]
[336850191,1725209483189,-500.0,0.00026027,2]
[336850192,1725209483198,-500.0,0.00026027,2]
[336850193,1725209483207,-500.0,0.00026027,2]
[336850194,1725209483220,-500.0,0.00026027,2]
[336850195,1725209483229,-500.0,0.00026027,2]
[336850196,1725209483238,-500.0,0.00026027,2]
[336850197,1725209483248,-500.0,0.00026027,2]
[336850198,1725209483257,-500.0,0.00026027,2]
[336850199,1725209483266,-500.0,0.00026027,2]
[336850200,1725209483276,-509.28,0.00026027,2]
[336850201,1725209483285,-500.0,0.00026027,2]
[336850202,1725209483294,-1359.54,0.00026027,2]
[336850203,1725209483304,-500.0,0.00026027,2]
[336850204,1725209483313,-505.55047737,0.00026027,2]
[336850205,1725209483324,-1091.17,0.00026027,2]
[336850206,1725209483333,-743.08,0.00026027,2]
[336850207,1725209483343,-500.0,0.00026027,2]
[336850208,1725209483352,-500.0,0.00026027,2]
[336850209,1725209483362,-2016.78,0.00026027,2]
[336850210,1725209483371,-500.0,0.00026027,2]
[336850211,1725209483382,-681.24,0.00026027,2]
[336850212,1725209483392,-500.0,0.00026027,2]
[336850213,1725209483401,-826.41,0.00026027,2]
[336850214,1725209483410,-500.0,0.00026027,2]
[336850215,1725209483421,-500.0,0.00026027,2]
[336850216,1725209483432,-500.0,0.00026027,2]
[336850217,1725209483441,-887.01,0.00026027,2]
[336850218,1725209483451,-500.0,0.00026027,2]
[336850219,1725209483460,-1380.3,0.00026027,2]
[336850220,1725209483472,-2137.62645,0.00026027,2]
[336850221,1725209483481,-500.0,0.00026027,2]
[336850222,1725209483491,-500.0,0.00026027,2]
[336850223,1725209483503,-2127.0,0.00026027,2]
[336850224,1725209483513,-500.0,0.00026027,2]
[336850225,1725209483524,-500.0,0.00026027,2]
[336850226,1725209483534,-500.0,0.00026027,2]
[336850227,1725209483545,-500.0,0.00026027,2]
[336850228,1725209483557,-500.0,0.00026027,2]
[336850229,1725209483567,-1009.87,0.00026027,2]
[336850230,1725209483576,-500.0,0.00026027,2]
[336850231,1725209483586,-500.0,0.00026027,2]
[336850232,1725209483600,-500.0,0.00026027,2]
[336850233,1725209483609,-503.31235981,0.00026027,2]
[336850234,1725209483619,-525.49,0.00026027,2]
[336850235,1725209483628,-503.675735,0.00026027,2]
[336850236,1725209483639,-933.95,0.00026027,2]
[336850237,1725209483651,-500.0,0.00026027,2]
[336850238,1725209483664,-500.0,0.00026027,2]
[336850239,1725209483674,-500.0,0.00026027,2]
[336850240,1725209483684,-500.0,0.00026027,2]
[336850241,1725209483694,-500.0,0.00026027,2]
[336850242,1725209483703,-636.14,0.00026027,2]
[336850243,1725209483716,-500.0,0.00026027,2]
[336850244,1725209483732,-500.0,0.00026027,2]
[336850245,1725209483742,-1856.5,0.00026027,2]
[336850246,1725209483752,-1379.91,0.00026027,2]
[336850247,1725209483761,-966.72,0.00026027,2]
[336850248,1725209483770,-643.02,0.00026027,2]
[336850249,1725209483780,-500.0,0.00026027,2]
[336850250,1725209483789,-500.0,0.00026027,2]
[336850251,1725209483799,-1807.05,0.00026027,2]
[336850252,1725209483809,-490.0,0.00026027,2]
[336850253,1725209483818,-500.0,0.00026027,2]
[336850254,1725209483828,-504.25,0.00026027,2]
[336850255,1725209483838,-500.0,0.00026027,2]
[336850256,1725209483849,-500.0,0.00026027,2]
[336850257,1725209483859,-690.86,0.00026027,2]
[336850258,1725209483957,-504.17445889,0.00026027,2]
[336850259,1725209483970,-500.0,0.00026027,2]
[336850260,1725209483982,-1794.98,0.00026027,2]
[336850261,1725209483992,-504.71622997,0.00026027,2]
[336850262,1725209484002,-500.0,0.00026027,2]
[336850263,1725209484013,-532.71,0.00026027,2]
[336850264,1725209484023,-500.0,0.00026027,2]
[336850265,1725209484035,-500.0,0.00026027,2]
[336850266,1725209484046,-3446.01,0.00026027,2]
[336850267,1725209484055,-2739.85,0.00026027,2]
[336850268,1725209484064,-707.09,0.00026027,2]
[336850269,1725209484074,-1637.46,0.00026027,2]
[336850270,1725209484084,-500.0,0.00026027,2]
[336850271,1725209484095,-500.0,0.00026027,2]
[336850272,1725209484105,-500.0,0.00026027,2]
[336850273,1725209484116,-500.0,0.00026027,2]
[336850274,1725209484127,-1022.52,0.00026027,2]
[336850275,1725209484136,-687.73,0.00026027,2]
[336850276,1725209484146,-787.17,0.00026027,2]
[336850277,1725209484156,-500.0,0.00026027,2]
[336850278,1725209484168,-500.0,0.00026027,2]
[336850279,1725209484179,-500.0,0.00026027,2]
[336850280,1725209484188,-500.0,0.00026027,2]
[336850281,1725209484198,-838.81,0.00026027,2]
[336850282,1725209484207,-500.0,0.00026027,2]
[336850283,1725209484218,-500.0,0.00026027,2]
[336850284,1725209484228,-2630.39,0.00026027,2]
[336850285,1725209484238,-1530.5,0.00026027,2]
[336850286,1725209484247,-628.82,0.00026027,2]
[336850287,1725209484257,-2233.56,0.00026027,2]
[336850288,1725209484266,-500.0,0.00026027,2]
[336850289,1725209484275,-500.0,0.00026027,2]
[336850290,1725209484285,-500.0,0.00026027,2]
[336850291,1725209484294,-667.06,0.00026027,2]
[336850292,1725209484303,-500.0,0.00026027,2]
[336850293,1725209484313,-1394.08,0.00026027,2]
[336850294,1725209484323,-851.66,0.00026027,2]
[336850295,1725209484332,-500.0,0.00026027,2]
[336850296,1725209484341,-1649.78,0.00026027,2]
[336850297,1725209484351,-500.0,0.00026027,2]
[336850298,1725209484361,-1047.65,0.00026027,2]
[336850299,1725209484371,-1789.21,0.00026027,2]
[336850300,1725209484380,-1717.02,0.00026027,2]
[336850301,1725209484390,-500.0,0.00026027,2]
[336850302,1725209484399,-1162.32071052,0.00026027,2]
[336850303,1725209485653,-1883.93,0.00024657,2]
[336850304,1725209485665,-500.0,0.00024657,2]
[336850305,1725209485676,-500.0,0.00024657,2]
[336850306,1725209485686,-500.0,0.00024657,2]
[336850307,1725209485695,-500.0,0.00024657,2]
[336850308,1725209485705,-500.0,0.00024657,2]
[336850309,1725209485715,-1883.93,0.00024931,2]
[336850310,1725209485725,-500.0,0.00024931,2]
[336850311,1725209485736,-500.0,0.00024931,2]
[336850312,1725209485747,-371.47,0.00024931,2]
[336850313,1725209485757,-1883.93,0.00025205,2]
[336850314,1725209485769,-500.0,0.00025205,2]
[336850315,1725209485779,-1883.93,0.00025479,2]
[336850316,1725209485789,-1883.93,0.00025753,2]
[336850317,1725209485799,-113.06928948,0.00026027,2]
[336850318,1725209485808,-500.0,0.00026027,2]
[336850319,1725209485817,-854.9,0.00026027,2]
[336850320,1725209485827,-1204.64,0.00026027,2]
[336850321,1725209485836,-2110.7,0.00026027,2]
[336850322,1725209485847,-792.42,0.00026027,2]
[336850323,1725209485859,-1415.94,0.00026027,2]
[336850324,1725209485868,-667.98,0.00026027,2]
[336850325,1725209485877,-500.0,0.00026027,2]
[336850326,1725209485887,-884.55,0.00026027,2]
[336850327,1725209485896,-1831.39,0.00026027,2]
[336850328,1725209485906,-1388.24,0.00026027,2]
[336850329,1725209485916,-2287.69,0.00026027,2]
[336850330,1725209485925,-1335.6,0.00026027,2]
[336850331,1725209485936,-500.0,0.00026027,2]
[336850332,1725209485946,-559.06,0.00026027,2]
[336850333,1725209485958,-91.27470693,0.00026027,2]
[336850334,1725209486296,-408.72529307,0.00026027,2]
[336850335,1725209486313,-523.66,0.00026027,2]
[336850336,1725209486332,-1170.97,0.00026027,2]
[336850337,1725209486352,-8054.46,0.00026027,2]
[336850338,1725209486371,-692.53,0.00026027,2]
[336850339,1725209486390,-3488.37906293,0.00026027,2]
[336850344,1725209804863,249.728806,0.00014247,2]
[336850350,1725210315132,158.447221,0.00014247,2]
[336850365,1725210632121,-249.728806,0.00020707,2]
[336850366,1725210632131,-1505.2146205,0.00022042,2]
[336850367,1725210632140,-384.705251,0.00022171,2]
[336850368,1725210632150,-411.4843741,0.00022189,2]
[336850369,1725210632159,-300.0,0.00022248,2]
[336850370,1725210632169,-3206.2179064,0.00022249,2]
[336850371,1725210632180,-15621.88162644,0.00022249,2]
[336850372,1725210632191,-6071.90046716,0.00022249,2]
[336850373,1725210632201,-441.88302,0.00022298,2]
[336850374,1725210632210,-250.0,0.00022522,2]
[336850375,1725210632220,-250.0,0.00022584,2]
[336850376,1725210632230,-250.0,0.00022646,2]
[336850377,1725210632240,-250.0,0.00022708,2]
[336850378,1725210632249,-250.0,0.0002277,2]
[336850379,1725210632259,-250.0,0.00022831,2]
[336850380,1725210632268,-250.0,0.00022893,2]
[336850381,1725210632278,-250.0,0.00022955,2]
[336850382,1725210632287,-250.0,0.00023017,2]
[336850383,1725210632297,-250.0,0.00023078,2]
[336850384,1725210632306,-250.0,0.0002314,2]
[336850385,1725210632315,-250.0,0.00023202,2]
[336850386,1725210632325,-250.0,0.00023264,2]
[336850387,1725210632334,-250.0,0.00023326,2]
[336850388,1725210632348,-250.0,0.00023387,2]
[336850389,1725210632358,-250.0,0.00023449,2]
[336850390,1725210632367,-209.316044,0.00023501,2]
[336850391,1725210632376,-250.0,0.00023511,2]
[336850392,1725210632385,-250.0,0.00023573,2]
[336850393,1725210632394,-250.0,0.00023634,2]
[336850394,1725210632404,-250.0,0.00023696,2]
[336850395,1725210632413,-439.097243,0.00023836,2]
[336850396,1725210632422,-420.0,0.00024473,2]
[336850397,1725210632431,-606.03714449,0.00024557,2]
[336850398,1725210632440,-606.03714449,0.00024626,2]
[336850399,1725210632449,-4457.83356875,0.00024647,3]
[336850406,1725210638346,-72125.67138465,0.00024647,3]
[336850407,1725210638356,-500.0,0.00024656,2]
[336850408,1725210638366,-465.9029387,0.00024656,2]
[336850409,1725210638376,-500.0,0.00024656,2]
[336850410,1725210638386,-500.0,0.00024656,2]
[336850411,1725210638395,-23693.93145953,0.00024657,11]
[336850412,1725210638405,-500.0,0.00024657,2]
[336850413,1725210638415,-536.15382628,0.00024657,2]
[336850414,1725210638424,-500.0,0.00024657,2]
[336850415,1725210638434,-500.0,0.00024657,2]
[336850416,1725210638444,-500.0,0.00024657,2]
[336850417,1725210638453,-500.0,0.00024657,2]
[336850418,1725210638462,-399.9,0.00024657,2]
[336850419,1725210638472,-500.0,0.00024657,2]
[336850420,1725210638482,-500.0,0.00024657,2]
[336850422,1725210638491,-500.0,0.00024657,2]
[336850423,1725210638502,-501.4242493,0.00024657,2]
[336850424,1725210638512,-500.0,0.00024657,2]
[336850425,1725210638522,-500.0,0.00024657,2]
[336850426,1725210638532,-500.0,0.00024657,2]
[336850427,1725210638543,-500.0,0.00024657,2]
[336850428,1725210638553,-500.0,0.00024657,2]
[336850429,1725210638563,-502.93525691,0.00024657,2]
[336850430,1725210638572,-500.0,0.00024657,2]
[336850431,1725210638582,-500.0,0.00024657,2]
[336850432,1725210638591,-503.75109237,0.00024657,2]
[336850433,1725210638603,-500.0,0.00024657,2]
[336850434,1725210638613,-509.68234293,0.00024657,2]
[336850435,1725210638622,-500.0,0.00024657,2]
[336850436,1725210638633,-485.92556822,0.00024657,2]
[336850437,1725210638644,-580.23,0.00024657,2]
[336850438,1725210638654,-290.23250147,0.00024657,2]
[336850439,1725210638664,-500.0,0.00024657,2]
[336850440,1725210638674,-500.0,0.00024657,2]
[336850441,1725210638684,-500.0,0.00024657,2]
[336850442,1725210638694,-500.0,0.00024657,2]
[336850443,1725210638704,-500.0,0.00024657,2]
[336850444,1725210638714,-500.0,0.00024657,2]
[336850445,1725210638723,-500.0,0.00024657,2]
[336850446,1725210638733,-500.0,0.00024657,2]
[336850447,1725210638748,-500.0,0.00024657,2]
[336850448,1725210638758,-500.0,0.00024657,2]
[336850449,1725210638770,-500.0,0.00024657,2]
[336850450,1725210638780,-500.0,0.00024657,2]
[336850451,1725210638790,-500.0,0.00024657,2]
[336850452,1725210638801,-500.0,0.00024657,2]
[336850453,1725210638811,-511.27,0.00024657,2]
[336850454,1725210638821,-500.0,0.00024657,2]
[336850455,1725210638831,-500.0,0.00024657,2]
[336850456,1725210638841,-500.0,0.00024657,2]
[336850457,1725210638855,-269.84241401,0.00024657,2]
[336850458,1725210638864,-500.0,0.00024657,2]
[336850459,1725210638874,-500.0,0.00024657,2]
[336850460,1725210638884,-500.0,0.00024657,2]
[336850461,1725210638893,-504.69029907,0.00024657,2]
[336850462,1725210638903,-500.0,0.00024657,2]
[336850463,1725210638913,-500.0,0.00024657,2]
[336850464,1725210638924,-500.0,0.00024657,2]
[336850465,1725210638934,-500.0,0.00024657,2]
[336850466,1725210638944,-500.0,0.00024657,2]
[336850467,1725210638954,-500.0,0.00024657,2]
[336850468,1725210638963,-500.0,0.00024657,2]
[336850469,1725210638978,-500.0,0.00024657,2]
[336850470,1725210638987,-500.0,0.00024657,2]
[336850471,1725210638998,-500.0,0.00024657,2]
[336850472,1725210639008,-500.0,0.00024657,2]
[336850473,1725210639018,-327.70453322,0.00024657,2]
[336850474,1725210639029,-500.0,0.00024657,2]
[336850475,1725210639039,-500.0,0.00024657,2]
[336850476,1725210639053,-500.0,0.00024657,2]
[336850477,1725210639065,-500.0,0.00024657,2]
[336850478,1725210639075,-500.0,0.00024657,2]
[336850479,1725210639084,-502.1027319,0.00024657,2]
[336850480,1725210639096,-500.0,0.00024657,2]
[336850481,1725210639111,-617.75649372,0.00024657,2]
[336850482,1725210639124,-500.0,0.00024657,2]
[336850483,1725210639135,-500.0,0.00024657,2]
[336850484,1725210639147,-500.0,0.00024657,2]
[336850485,1725210639157,-500.0,0.00024657,2]
[336850486,1725210639167,-500.0,0.00024657,2]
[336850487,1725210639177,-484.01926431,0.00024657,2]
[336850488,1725210639188,-500.0,0.00024657,2]
[336850489,1725210639200,-500.0,0.00024657,2]
[336850490,1725210639214,-500.0,0.00024657,2]
[336850491,1725210639224,-500.0,0.00024657,2]
[336850492,1725210639234,-500.0,0.00024657,2]
[336850493,1725210639244,-500.0,0.00024657,2]
[336850494,1725210639254,-500.0,0.00024657,2]
[336850495,1725210639263,-500.0,0.00024657,2]